Workbook

Sheet Guajayvi
B2: >> MUNICIPALIDAD DE GUAJAYVI << Departamento de San Pedro – Paraguay Intendencia Municipal
A3: SECRETARÍA GENERAL
A4: Departamento de Recursos Humanos
A7: RESUMEN ANUAL CORRESPONDIENTE AL EJERCICIO AÑO 2016 EN CUMPLIMIENTO DEL ART. 7 DE LA LEY 5189/2014
A8: Art. 7º. Todas las instituciones y dependencias citadas en el Art. 2º deberán publicar cada fin de ejercicio, un resumen total de ingresos de cada unos de los funcionarios incluyendo, los montos de remuneraciones básicas, adicionales, complementarias, otros gastos del personal y viáticos por cada funcionario o empleado, permanente, contratado o de elección popular. Estos resúmenes deben ser publicados a más tardar para el último día hábil del mes de enero de cada año. | W8: s
A9: Nivel | C9: :30
A10: Departamento | C10: :02 San Pedro
A11: OEE | C11: : 24 MUNICIPALIDAD DE GUAJAYVI
A13: Orden Nº | B13: LÍNEA | C13: C.I.C. Nº | D13: NOMBRE (S) | E13: APELLIDO (S) | F13: CONCEPTO | G13: DONOMICACIÓN | H13: ENERO | I13: FEBRERO | J13: MARZO | K13: ABRIL | L13: MAYO | M13: JUNIO | N13: JULIO | O13: AGOSTO | P13: SEPTIEMBRE | Q13: OCTUBRE | R13: NOVIEMBRE | S13: DICIEMBRE | T13: ACUMULADO A DICIEMBRE | U13: AGUINALDO 2016 | V13: MONTO TOTAL
C15: ='[1]01 SICCA ENERO 2016.'!G2 -> 3475268 | D15: ='[1]01 SICCA ENERO 2016.'!H2 -> OSVALDO | E15: ='[1]01 SICCA ENERO 2016.'!I2 -> GARCIA AREVALOS | F15: 111 | G15: SUELDO | H15: ='[1]01 SICCA ENERO 2016.'!O2 -> 8500000 | I15: ='[2]02 SICCA FEBRERO 2016.'!O2 -> 8500000 | J15: =I15 -> 8500000 | K15: ='[3]04 SICCA ABRIL 2016'!O2 -> 8500000 | L15: ='[4]05 SICCA MAYO 2016.'!O2 -> 8500000 | M15: ='[5]05 SICCA JUNIO 2016. 1'!O2 -> 8500000 | N15: =M15 -> 8500000 | O15: =M15 -> 8500000 | P15: =O15 -> 8500000 | Q15: =P15 -> 8500000 | R15: 8500000 | S15: =R15 -> 8500000 | T15: =SUM(H15:S15) -> 102000000 | U15: 8500000 | V15: 110500000
C16: 3475268 | D16: OSVALDO | E16: GARCIA AREVALOS | F16: 113 | G16: GASTO DE REPRESENTACION | H16: 0 | I16: 0 | J16: 0 | K16: 0 | L16: 0 | M16: ='[5]05 SICCA JUNIO 2016. 1'!O3 -> 3700000 | N16: 3700000 | O16: 3700000 | P16: 3700000 | Q16: 3700000 | R16: 3700000 | S16: =R16 -> 3700000 | T16: =H16+I16+J16+K16+L16+M16+N16+O16+P16+Q16+R16+S16 -> 25900000 | U16: 2158333 | V16: =T16+U16 -> 28058333
C17: ='[1]01 SICCA ENERO 2016.'!G3 -> 2442741 | D17: ='[1]01 SICCA ENERO 2016.'!H3 -> ARISTIDES RAMON | E17: ='[1]01 SICCA ENERO 2016.'!I3 -> ESTIGARRIBIA ROMERO | F17: 111 | G17: SUELDO | H17: ='[1]01 SICCA ENERO 2016.'!O3 -> 2000000 | I17: ='[2]02 SICCA FEBRERO 2016.'!O3 -> 2000000 | J17: 2000000 | K17: ='[3]04 SICCA ABRIL 2016'!O3 -> 0 | L17: ='[4]05 SICCA MAYO 2016.'!O3 -> 0 | M17: 0 | N17: 0 | O17: 2000000 | P17: 2000000 | Q17: 2000000 | R17: 2000000 | S17: =R17 -> 2000000 | T17: =H17+I17+J17+K17+L17+M17+N17+O17+P17+Q17+R17+S17 -> 16000000 | U17: 1333333 | V17: =T17+U17 -> 17333333
C18: ='[1]01 SICCA ENERO 2016.'!G4 -> 3393161 | D18: ='[1]01 SICCA ENERO 2016.'!H4 -> LOURDES MERCEDES | E18: ='[1]01 SICCA ENERO 2016.'!I4 -> SALINAS LOPEZ | F18: 111 | G18: SUELDO | H18: ='[1]01 SICCA ENERO 2016.'!O4 -> 2000000 | I18: ='[2]02 SICCA FEBRERO 2016.'!O4 -> 2000000 | J18: 2000000 | K18: ='[3]04 SICCA ABRIL 2016'!O4 -> 2000000 | L18: ='[4]05 SICCA MAYO 2016.'!O4 -> 2000000 | M18: 2000000 | N18: 2000000 | O18: 2000000 | P18: 2000000 | Q18: 2000000 | R18: 2000000 | S18: =R18 -> 2000000 | T18: 24000000 | U18: 2000000 | V18: 26000000
C19: ='[1]01 SICCA ENERO 2016.'!G5 -> 4026177 | D19: ='[1]01 SICCA ENERO 2016.'!H5 -> SELVA SOLEDAD | E19: ='[1]01 SICCA ENERO 2016.'!I5 -> RODAS VILLALBA | F19: 111 | G19: SUELDO | H19: ='[1]01 SICCA ENERO 2016.'!O5 -> 1300000 | I19: ='[2]02 SICCA FEBRERO 2016.'!O5 -> 1300000 | J19: 1300000 | K19: ='[3]04 SICCA ABRIL 2016'!O5 -> 1300000 | L19: ='[4]05 SICCA MAYO 2016.'!O5 -> 1300000 | M19: 1300000 | N19: 1300000 | O19: 1300000 | P19: 1300000 | Q19: 1300000 | R19: 1300000 | S19: =R19 -> 1300000 | T19: 15600000 | U19: 2983100 | V19: 18583100
C20: ='[1]01 SICCA ENERO 2016.'!G6 -> 3980415 | D20: ='[1]01 SICCA ENERO 2016.'!H6 -> DILIO HERNAN | E20: ='[1]01 SICCA ENERO 2016.'!I6 -> TRINIDAD QUIÃ‘ONEZ | F20: 111 | G20: SUELDO | H20: ='[1]01 SICCA ENERO 2016.'!O6 -> 1300000 | I20: ='[2]02 SICCA FEBRERO 2016.'!O6 -> 1300000 | J20: 1300000 | K20: ='[3]04 SICCA ABRIL 2016'!O6 -> 1300000 | L20: ='[4]05 SICCA MAYO 2016.'!O6 -> 1300000 | M20: ='[5]05 SICCA JUNIO 2016. 1'!O6 -> 1300000 | N20: 1300000 | O20: 1300000 | P20: 1300000 | Q20: 1300000 | R20: 1300000 | S20: =R20 -> 1300000 | T20: 15600000 | U20: 1300000 | V20: 16900000
C21: ='[1]01 SICCA ENERO 2016.'!G7 -> 4767673 | D21: ='[1]01 SICCA ENERO 2016.'!H7 -> LUZ MARICEL | E21: ='[1]01 SICCA ENERO 2016.'!I7 -> MIRANDA JARA | F21: 111 | G21: SUELDO | H21: ='[1]01 SICCA ENERO 2016.'!O7 -> 1200000 | I21: ='[2]02 SICCA FEBRERO 2016.'!O7 -> 1200000 | J21: 1200000 | K21: ='[3]04 SICCA ABRIL 2016'!O7 -> 1200000 | L21: ='[4]05 SICCA MAYO 2016.'!O7 -> 1200000 | M21: 1200000 | N21: 1200000 | O21: 1200000 | P21: 1200000 | Q21: 1200000 | R21: 1200000 | S21: =R21 -> 1200000 | T21: 14400000 | U21: 1200000 | V21: 15600000
C22: ='[1]01 SICCA ENERO 2016.'!G8 -> 5271349 | D22: ='[1]01 SICCA ENERO 2016.'!H8 -> ZULLY CELESTE | E22: ='[1]01 SICCA ENERO 2016.'!I8 -> GONZALEZ DENIS | F22: 111 | G22: SUELDO | H22: ='[1]01 SICCA ENERO 2016.'!O8 -> 1200000 | I22: ='[2]02 SICCA FEBRERO 2016.'!O8 -> 1200000 | J22: 1200000 | K22: ='[3]04 SICCA ABRIL 2016'!O8 -> 1200000 | L22: ='[4]05 SICCA MAYO 2016.'!O8 -> 1200000 | M22: ='[5]05 SICCA JUNIO 2016. 1'!O8 -> 1200000 | N22: 1200000 | O22: 1200000 | P22: 1200000 | Q22: 1200000 | R22: 1200000 | S22: =R22 -> 1200000 | T22: 14400000 | U22: 2398400 | V22: 16798400
C23: ='[1]01 SICCA ENERO 2016.'!G9 -> 3592437 | D23: ='[1]01 SICCA ENERO 2016.'!H9 -> OSCAR | E23: ='[1]01 SICCA ENERO 2016.'!I9 -> GIMENEZ BENITEZ | F23: 111 | G23: SUELDO | H23: ='[1]01 SICCA ENERO 2016.'!O9 -> 1300000 | I23: ='[2]02 SICCA FEBRERO 2016.'!O9 -> 1300000 | J23: 1300000 | K23: ='[3]04 SICCA ABRIL 2016'!O9 -> 1300000 | L23: ='[4]05 SICCA MAYO 2016.'!O9 -> 1300000 | M23: 1300000 | N23: 1300000 | O23: 1300000 | P23: 1300000 | Q23: 1300000 | R23: 1300000 | S23: =R23 -> 1300000 | T23: 15600000 | U23: 1300000 | V23: 16900000
C24: ='[1]01 SICCA ENERO 2016.'!G10 -> 3848192 | D24: ='[1]01 SICCA ENERO 2016.'!H10 -> MIRIAN | E24: ='[1]01 SICCA ENERO 2016.'!I10 -> ROLON MARTINEZ | F24: 111 | G24: SUELDO | H24: ='[1]01 SICCA ENERO 2016.'!O10 -> 1200000 | I24: ='[2]02 SICCA FEBRERO 2016.'!O10 -> 1200000 | J24: 1200000 | K24: ='[3]04 SICCA ABRIL 2016'!O10 -> 1200000 | L24: ='[4]05 SICCA MAYO 2016.'!O10 -> 1200000 | M24: 1200000 | N24: 1200000 | O24: 1200000 | P24: 1200000 | Q24: 1200000 | R24: 1200000 | S24: =R24 -> 1200000 | T24: 14400000 | U24: 1200000 | V24: 15600000
C25: ='[1]01 SICCA ENERO 2016.'!G11 -> 3515963 | D25: ='[1]01 SICCA ENERO 2016.'!H11 -> HECTOR MILCIADES | E25: ='[1]01 SICCA ENERO 2016.'!I11 -> MARTINEZ RAMIREZ | F25: 111 | G25: SUELDO | H25: ='[1]01 SICCA ENERO 2016.'!O11 -> 2000000 | I25: ='[2]02 SICCA FEBRERO 2016.'!O11 -> 2000000 | J25: 2000000 | K25: ='[3]04 SICCA ABRIL 2016'!O11 -> 2000000 | L25: ='[4]05 SICCA MAYO 2016.'!O11 -> 2000000 | M25: 2000000 | N25: 2000000 | O25: 2000000 | P25: 2000000 | Q25: 2000000 | R25: 2000000 | S25: =R25 -> 2000000 | T25: 24000000 | U25: 2000000 | V25: 26000000
C26: ='[1]01 SICCA ENERO 2016.'!G12 -> 4775694 | D26: ='[1]01 SICCA ENERO 2016.'!H12 -> DERLIS RAUL | E26: ='[1]01 SICCA ENERO 2016.'!I12 -> NUÃ‘EZ FERREIRA | F26: 111 | G26: SUELDO | H26: ='[1]01 SICCA ENERO 2016.'!O12 -> 2500000 | I26: ='[2]02 SICCA FEBRERO 2016.'!O12 -> 2500000 | J26: 2500000 | K26: ='[3]04 SICCA ABRIL 2016'!O12 -> 2500000 | L26: ='[4]05 SICCA MAYO 2016.'!O12 -> 2500000 | M26: 2500000 | N26: 2500000 | O26: 2500000 | P26: 2500000 | Q26: 2500000 | R26: 2500000 | S26: =R26 -> 2500000 | T26: 30000000 | U26: 2500000 | V26: 32500000
C27: ='[1]01 SICCA ENERO 2016.'!G13 -> 6163275 | D27: ='[1]01 SICCA ENERO 2016.'!H13 -> MIRIAN ROSANA | E27: ='[1]01 SICCA ENERO 2016.'!I13 -> BENITEZ TRINIDAD | F27: 144 | G27: JORNALES | H27: ='[1]01 SICCA ENERO 2016.'!O13 -> 1000000 | I27: ='[2]02 SICCA FEBRERO 2016.'!O13 -> 1000000 | J27: ='[2]02 SICCA FEBRERO 2016.'!P13 -> 1000000 | K27: ='[3]04 SICCA ABRIL 2016'!O13 -> 1000000 | L27: ='[4]05 SICCA MAYO 2016.'!O13 -> 1000000 | M27: 1000000 | N27: 1000000 | O27: 1000000 | P27: 1000000 | Q27: 1000000 | R27: 1000000 | S27: =R27 -> 1000000 | T27: 12000000 | U27: 1000000 | V27: 13000000
C28: ='[1]01 SICCA ENERO 2016.'!G14 -> 3677196 | D28: ='[1]01 SICCA ENERO 2016.'!H14 -> REBECA | E28: ='[1]01 SICCA ENERO 2016.'!I14 -> GARCIA AREVALO | F28: 144 | G28: JORNALES | H28: ='[1]01 SICCA ENERO 2016.'!O14 -> 2000000 | I28: ='[2]02 SICCA FEBRERO 2016.'!O14 -> 2000000 | J28: ='[2]02 SICCA FEBRERO 2016.'!P14 -> 2000000 | K28: ='[3]04 SICCA ABRIL 2016'!O14 -> 2000000 | L28: ='[4]05 SICCA MAYO 2016.'!O14 -> 2000000 | M28: 2000000 | N28: 2000000 | O28: 2000000 | P28: 2000000 | Q28: 2000000 | R28: 2000000 | S28: =R28 -> 2000000 | T28: 24000000 | U28: 2000000 | V28: 26000000
C29: ='[1]01 SICCA ENERO 2016.'!G15 -> 5292249 | D29: ='[1]01 SICCA ENERO 2016.'!H15 -> CARLOS DAVID | E29: ='[1]01 SICCA ENERO 2016.'!I15 -> RIVAS LOPEZ | F29: 144 | G29: JORNALES | H29: ='[1]01 SICCA ENERO 2016.'!O15 -> 1500000 | I29: ='[2]02 SICCA FEBRERO 2016.'!O15 -> 1500000 | J29: ='[2]02 SICCA FEBRERO 2016.'!P15 -> 1500000 | K29: ='[3]04 SICCA ABRIL 2016'!O15 -> 1500000 | L29: ='[4]05 SICCA MAYO 2016.'!O15 -> 1500000 | M29: 1500000 | N29: 1500000 | O29: 1500000 | P29: 1500000 | Q29: 1500000 | R29: 1500000 | S29: =R29 -> 1500000 | T29: 18000000 | U29: 1500000 | V29: 19500000
C30: ='[1]01 SICCA ENERO 2016.'!G16 -> 4601493 | D30: ='[1]01 SICCA ENERO 2016.'!H16 -> SUSANA PAOLA | E30: ='[1]01 SICCA ENERO 2016.'!I16 -> PORTILLO ALEGRE | F30: 144 | G30: JORNALES | H30: ='[1]01 SICCA ENERO 2016.'!O16 -> 1000000 | I30: ='[2]02 SICCA FEBRERO 2016.'!O16 -> 1000000 | J30: ='[2]02 SICCA FEBRERO 2016.'!P16 -> 1000000 | K30: ='[3]04 SICCA ABRIL 2016'!O16 -> 1000000 | L30: ='[4]05 SICCA MAYO 2016.'!O16 -> 1000000 | M30: 1000000 | N30: 1000000 | O30: 1000000 | P30: 1000000 | Q30: 1000000 | R30: 1000000 | S30: =R30 -> 1000000 | T30: 12000000 | U30: 1000000 | V30: 13000000
C31: ='[1]01 SICCA ENERO 2016.'!G17 -> 3273644 | D31: ='[1]01 SICCA ENERO 2016.'!H17 -> OSCAR DARIO | E31: ='[1]01 SICCA ENERO 2016.'!I17 -> GIMENEZ PIÃ‘EIRO | F31: 144 | G31: JORNALES | H31: ='[1]01 SICCA ENERO 2016.'!O17 -> 1000000 | I31: ='[2]02 SICCA FEBRERO 2016.'!O17 -> 1000000 | J31: ='[2]02 SICCA FEBRERO 2016.'!P17 -> 1000000 | K31: ='[3]04 SICCA ABRIL 2016'!O17 -> 1000000 | L31: ='[4]05 SICCA MAYO 2016.'!O17 -> 1000000 | M31: ='[5]05 SICCA JUNIO 2016. 1'!O17 -> 1000000 | N31: 1000000 | O31: 1000000 | P31: 1000000 | Q31: 1000000 | R31: 1000000 | S31: =R31 -> 1000000 | T31: 12000000 | U31: 1000000 | V31: 13000000
C32: ='[1]01 SICCA ENERO 2016.'!G18 -> 2148224 | D32: ='[1]01 SICCA ENERO 2016.'!H18 -> ANTOLINA | E32: ='[1]01 SICCA ENERO 2016.'!I18 -> BRITEZ DAVID | F32: 144 | G32: JORNALES | H32: ='[1]01 SICCA ENERO 2016.'!O18 -> 800000 | I32: ='[2]02 SICCA FEBRERO 2016.'!O18 -> 800000 | J32: ='[2]02 SICCA FEBRERO 2016.'!P18 -> 800000 | K32: ='[3]04 SICCA ABRIL 2016'!O18 -> 800000 | L32: ='[4]05 SICCA MAYO 2016.'!O18 -> 800000 | M32: 800000 | N32: 800000 | O32: 800000 | P32: 800000 | Q32: 800000 | R32: 800000 | S32: =R32 -> 800000 | T32: 9600000 | U32: 800000 | V32: 10400000
C33: ='[1]01 SICCA ENERO 2016.'!G19 -> 4221405 | D33: ='[1]01 SICCA ENERO 2016.'!H19 -> SUSANA | E33: ='[1]01 SICCA ENERO 2016.'!I19 -> DELVALLE CUENCA | F33: 144 | G33: JORNALES | H33: ='[1]01 SICCA ENERO 2016.'!O19 -> 1000000 | I33: ='[2]02 SICCA FEBRERO 2016.'!O19 -> 1000000 | J33: ='[2]02 SICCA FEBRERO 2016.'!P19 -> 1000000 | K33: ='[3]04 SICCA ABRIL 2016'!O19 -> 1000000 | L33: ='[4]05 SICCA MAYO 2016.'!O19 -> 1000000 | M33: 1000000 | N33: 1000000 | O33: 1000000 | P33: 1000000 | Q33: 1000000 | R33: 1000000 | S33: =R33 -> 1000000 | T33: 12000000 | U33: 1000000 | V33: 13000000
C34: ='[1]01 SICCA ENERO 2016.'!G20 -> 6075136 | D34: ='[1]01 SICCA ENERO 2016.'!H20 -> ELBA YOLANDA | E34: ='[1]01 SICCA ENERO 2016.'!I20 -> ACOSTA VILLAGRA | F34: 144 | G34: JORNALES | H34: ='[1]01 SICCA ENERO 2016.'!O20 -> 1000000 | I34: ='[2]02 SICCA FEBRERO 2016.'!O20 -> 1000000 | J34: ='[2]02 SICCA FEBRERO 2016.'!P20 -> 1000000 | K34: ='[3]04 SICCA ABRIL 2016'!O20 -> 1000000 | L34: ='[4]05 SICCA MAYO 2016.'!O20 -> 1000000 | M34: ='[5]05 SICCA JUNIO 2016. 1'!O20 -> 1000000 | N34: 1000000 | O34: 1000000 | P34: 1000000 | Q34: 1000000 | R34: 1000000 | S34: =R34 -> 1000000 | T34: 12000000 | U34: 1000000 | V34: 13000000
C35: ='[1]01 SICCA ENERO 2016.'!G21 -> 2624504 | D35: ='[1]01 SICCA ENERO 2016.'!H21 -> VICTOR ANIBAL | E35: ='[1]01 SICCA ENERO 2016.'!I21 -> ZACHE GONZALEZ | F35: 144 | G35: JORNALES | H35: ='[1]01 SICCA ENERO 2016.'!O21 -> 1800000 | I35: ='[2]02 SICCA FEBRERO 2016.'!O21 -> 1800000 | J35: ='[2]02 SICCA FEBRERO 2016.'!P21 -> 1800000 | K35: ='[3]04 SICCA ABRIL 2016'!O21 -> 1800000 | L35: ='[4]05 SICCA MAYO 2016.'!O21 -> 1800000 | M35: 1800000 | N35: 1800000 | O35: 1800000 | P35: 1800000 | Q35: 1800000 | R35: 1800000 | S35: =R35 -> 1800000 | T35: 21600000 | U35: 1800000 | V35: 23400000
C36: ='[1]01 SICCA ENERO 2016.'!G22 -> 4209643 | D36: ='[1]01 SICCA ENERO 2016.'!H22 -> MARIO | E36: ='[1]01 SICCA ENERO 2016.'!I22 -> ORTIZ PALACIOS | F36: 144 | G36: JORNALES | H36: ='[1]01 SICCA ENERO 2016.'!O22 -> 1000000 | I36: ='[2]02 SICCA FEBRERO 2016.'!O22 -> 1000000 | J36: ='[2]02 SICCA FEBRERO 2016.'!P22 -> 1000000 | K36: ='[3]04 SICCA ABRIL 2016'!O22 -> 1000000 | L36: ='[4]05 SICCA MAYO 2016.'!O22 -> 1000000 | M36: 1000000 | N36: 1000000 | O36: 1000000 | P36: 1000000 | Q36: 1000000 | R36: 1000000 | S36: =R36 -> 1000000 | T36: 12000000 | U36: 1000000 | V36: 13000000
C37: ='[1]01 SICCA ENERO 2016.'!G23 -> 5304866 | D37: ='[1]01 SICCA ENERO 2016.'!H23 -> EUGENIA RAQUEL | E37: ='[1]01 SICCA ENERO 2016.'!I23 -> ACOSTA BENITEZ | F37: 144 | G37: JORNALES | H37: ='[1]01 SICCA ENERO 2016.'!O23 -> 800000 | I37: ='[2]02 SICCA FEBRERO 2016.'!O23 -> 800000 | J37: ='[2]02 SICCA FEBRERO 2016.'!P23 -> 800000 | K37: ='[3]04 SICCA ABRIL 2016'!O23 -> 800000 | L37: ='[4]05 SICCA MAYO 2016.'!O23 -> 800000 | M37: 800000 | N37: 800000 | O37: 800000 | P37: 800000 | Q37: 800000 | R37: 800000 | S37: =R37 -> 800000 | T37: 9600000 | U37: 800000 | V37: 10400000
C38: ='[1]01 SICCA ENERO 2016.'!G24 -> 4466554 | D38: ='[1]01 SICCA ENERO 2016.'!H24 -> FREDY | E38: ='[1]01 SICCA ENERO 2016.'!I24 -> CABALLERO BENITEZ | F38: 112 | G38: DIETAS | H38: ='[1]01 SICCA ENERO 2016.'!O24 -> 1700000 | I38: ='[2]02 SICCA FEBRERO 2016.'!O24 -> 1700000 | J38: ='[2]02 SICCA FEBRERO 2016.'!P24 -> 1700000 | K38: ='[3]04 SICCA ABRIL 2016'!O24 -> 1700000 | L38: ='[4]05 SICCA MAYO 2016.'!O24 -> 1700000 | M38: 1700000 | N38: 1700000 | O38: 1700000 | P38: 1700000 | Q38: 1700000 | R38: 1700000 | S38: =R38 -> 1700000 | T38: 20400000 | U38: 1700000 | V38: 22100000
C39: ='[1]01 SICCA ENERO 2016.'!G25 -> 4466554 | D39: ='[1]01 SICCA ENERO 2016.'!H25 -> FREDY | E39: ='[1]01 SICCA ENERO 2016.'!I25 -> CABALLERO BENITEZ | F39: 113 | G39: GASTO DE REPRESENTACION | H39: ='[1]01 SICCA ENERO 2016.'!O25 -> 600000 | I39: ='[2]02 SICCA FEBRERO 2016.'!O25 -> 600000 | J39: ='[2]02 SICCA FEBRERO 2016.'!P25 -> 600000 | K39: ='[3]04 SICCA ABRIL 2016'!O25 -> 600000 | L39: ='[4]05 SICCA MAYO 2016.'!O25 -> 600000 | M39: 600000 | N39: 600000 | O39: 600000 | P39: 600000 | Q39: 600000 | R39: 600000 | S39: =R39 -> 600000 | T39: 7200000 | U39: 600000 | V39: 7800000
C40: ='[1]01 SICCA ENERO 2016.'!G26 -> 2281707 | D40: ='[1]01 SICCA ENERO 2016.'!H26 -> FRANCISCO | E40: ='[1]01 SICCA ENERO 2016.'!I26 -> BOGADO ZARATE | F40: 112 | G40: DIETAS | H40: ='[1]01 SICCA ENERO 2016.'!O26 -> 1700000 | I40: ='[2]02 SICCA FEBRERO 2016.'!O26 -> 1700000 | J40: ='[2]02 SICCA FEBRERO 2016.'!P26 -> 1700000 | K40: ='[3]04 SICCA ABRIL 2016'!O26 -> 1700000 | L40: 1700000 | M40: 1700000 | N40: 1700000 | O40: 1700000 | P40: 1700000 | Q40: 1700000 | R40: 1700000 | S40: =R40 -> 1700000 | T40: 20400000 | U40: 1700000 | V40: 22100000
C41: ='[1]01 SICCA ENERO 2016.'!G27 -> 2281707 | D41: ='[1]01 SICCA ENERO 2016.'!H27 -> FRANCISCO | E41: ='[1]01 SICCA ENERO 2016.'!I27 -> BOGADO ZARATE | F41: 113 | G41: GASTO DE REPRESENTACION | H41: ='[1]01 SICCA ENERO 2016.'!O27 -> 600000 | I41: ='[2]02 SICCA FEBRERO 2016.'!O27 -> 600000 | J41: ='[2]02 SICCA FEBRERO 2016.'!P27 -> 600000 | K41: ='[3]04 SICCA ABRIL 2016'!O27 -> 600000 | L41: 600000 | M41: 600000 | N41: 600000 | O41: 600000 | P41: 600000 | Q41: 600000 | R41: 600000 | S41: =R41 -> 600000 | T41: 7200000 | U41: 600000 | V41: 7800000
C42: ='[1]01 SICCA ENERO 2016.'!G28 -> 2645675 | D42: ='[1]01 SICCA ENERO 2016.'!H28 -> LIDUVINO | E42: ='[1]01 SICCA ENERO 2016.'!I28 -> SOSA ZORRILLA | F42: 112 | G42: DIETAS | H42: ='[1]01 SICCA ENERO 2016.'!O28 -> 1700000 | I42: ='[2]02 SICCA FEBRERO 2016.'!O28 -> 1700000 | J42: ='[2]02 SICCA FEBRERO 2016.'!P28 -> 1700000 | K42: ='[3]04 SICCA ABRIL 2016'!O28 -> 1700000 | L42: ='[4]05 SICCA MAYO 2016.'!O28 -> 1700000 | M42: 1700000 | N42: 1700000 | O42: 1700000 | P42: 1700000 | Q42: 1700000 | R42: 1700000 | S42: =R42 -> 1700000 | T42: 20400000 | U42: 1700000 | V42: 22100000
C43: ='[1]01 SICCA ENERO 2016.'!G29 -> 2645675 | D43: ='[1]01 SICCA ENERO 2016.'!H29 -> LIDUVINO | E43: ='[1]01 SICCA ENERO 2016.'!I29 -> SOSA ZORRILLA | F43: 113 | G43: GASTO DE REPRESENTACION | H43: ='[1]01 SICCA ENERO 2016.'!O29 -> 600000 | I43: ='[2]02 SICCA FEBRERO 2016.'!O29 -> 600000 | J43: ='[2]02 SICCA FEBRERO 2016.'!P29 -> 600000 | K43: ='[3]04 SICCA ABRIL 2016'!O29 -> 600000 | L43: ='[4]05 SICCA MAYO 2016.'!O29 -> 600000 | M43: 600000 | N43: 600000 | O43: 600000 | P43: 600000 | Q43: 600000 | R43: 600000 | S43: =R43 -> 600000 | T43: 7200000 | U43: 600000 | V43: 7800000
C44: ='[1]01 SICCA ENERO 2016.'!G30 -> 2301604 | D44: ='[1]01 SICCA ENERO 2016.'!H30 -> DIONISIO | E44: ='[1]01 SICCA ENERO 2016.'!I30 -> BARRIOS | F44: 112 | G44: DIETAS | H44: ='[1]01 SICCA ENERO 2016.'!O30 -> 1700000 | I44: ='[2]02 SICCA FEBRERO 2016.'!O30 -> 1700000 | J44: ='[2]02 SICCA FEBRERO 2016.'!P30 -> 1700000 | K44: ='[3]04 SICCA ABRIL 2016'!O30 -> 1700000 | L44: ='[4]05 SICCA MAYO 2016.'!O30 -> 1700000 | M44: 1700000 | N44: 1700000 | O44: 1700000 | P44: 1700000 | Q44: 1700000 | R44: 1700000 | S44: =R44 -> 1700000 | T44: 20400000 | U44: 1700000 | V44: 22100000
C45: ='[1]01 SICCA ENERO 2016.'!G31 -> 2301604 | D45: ='[1]01 SICCA ENERO 2016.'!H31 -> DIONISIO | E45: ='[1]01 SICCA ENERO 2016.'!I31 -> BARRIOS | F45: 113 | G45: GASTO DE REPRESENTACION | H45: ='[1]01 SICCA ENERO 2016.'!O31 -> 600000 | I45: ='[2]02 SICCA FEBRERO 2016.'!O31 -> 600000 | J45: ='[2]02 SICCA FEBRERO 2016.'!P31 -> 600000 | K45: ='[3]04 SICCA ABRIL 2016'!O31 -> 600000 | L45: ='[4]05 SICCA MAYO 2016.'!O31 -> 600000 | M45: 600000 | N45: 600000 | O45: 600000 | P45: 600000 | Q45: 600000 | R45: 600000 | S45: =R45 -> 600000 | T45: 7200000 | U45: 600000 | V45: 7800000
C46: ='[1]01 SICCA ENERO 2016.'!G32 -> 3568238 | D46: ='[1]01 SICCA ENERO 2016.'!H32 -> JUANA MARIA | E46: ='[1]01 SICCA ENERO 2016.'!I32 -> DELVALLE CUENCA | F46: 112 | G46: DIETAS | H46: ='[1]01 SICCA ENERO 2016.'!O32 -> 1700000 | I46: ='[2]02 SICCA FEBRERO 2016.'!O32 -> 1700000 | J46: ='[2]02 SICCA FEBRERO 2016.'!P32 -> 1700000 | K46: ='[3]04 SICCA ABRIL 2016'!O32 -> 1700000 | L46: ='[4]05 SICCA MAYO 2016.'!O32 -> 1700000 | M46: 1700000 | N46: 1700000 | O46: 1700000 | P46: 1700000 | Q46: 1700000 | R46: 1700000 | S46: =R46 -> 1700000 | T46: 20400000 | U46: 1700000 | V46: 22100000
C47: ='[1]01 SICCA ENERO 2016.'!G33 -> 3568238 | D47: ='[1]01 SICCA ENERO 2016.'!H33 -> JUANA MARIA | E47: ='[1]01 SICCA ENERO 2016.'!I33 -> DELVALLE CUENCA | F47: 113 | G47: GASTO DE REPRESENTACION | H47: ='[1]01 SICCA ENERO 2016.'!O33 -> 600000 | I47: ='[2]02 SICCA FEBRERO 2016.'!O33 -> 600000 | J47: ='[2]02 SICCA FEBRERO 2016.'!P33 -> 600000 | K47: ='[3]04 SICCA ABRIL 2016'!O33 -> 600000 | L47: ='[4]05 SICCA MAYO 2016.'!O33 -> 600000 | M47: 600000 | N47: =M47 -> 600000 | O47: =M47 -> 600000 | P47: =O47 -> 600000 | Q47: 600000 | R47: =Q47 -> 600000 | S47: 600000 | T47: 7200000 | U47: 600000 | V47: 7800000
C48: ='[1]01 SICCA ENERO 2016.'!G34 -> 1300428 | D48: ='[1]01 SICCA ENERO 2016.'!H34 -> FIDENCIO | E48: ='[1]01 SICCA ENERO 2016.'!I34 -> ROLON SOSA | F48: 112 | G48: DIETAS | H48: ='[1]01 SICCA ENERO 2016.'!O34 -> 1700000 | I48: ='[2]02 SICCA FEBRERO 2016.'!O34 -> 1700000 | J48: ='[2]02 SICCA FEBRERO 2016.'!P34 -> 1700000 | K48: ='[3]04 SICCA ABRIL 2016'!O34 -> 1700000 | L48: ='[4]05 SICCA MAYO 2016.'!O34 -> 1700000 | M48: 1700000 | N48: 1700000 | O48: 1700000 | P48: 1700000 | Q48: 1700000 | R48: =Q48 -> 1700000 | S48: 1700000 | T48: 20400000 | U48: =U38 -> 1700000 | V48: 22100000
C49: ='[1]01 SICCA ENERO 2016.'!G35 -> 1300428 | D49: ='[1]01 SICCA ENERO 2016.'!H35 -> FIDENCIO | E49: ='[1]01 SICCA ENERO 2016.'!I35 -> ROLON SOSA | F49: 113 | G49: GASTO DE REPRESENTACION | H49: ='[1]01 SICCA ENERO 2016.'!O35 -> 600000 | I49: ='[2]02 SICCA FEBRERO 2016.'!O35 -> 600000 | J49: ='[2]02 SICCA FEBRERO 2016.'!P35 -> 600000 | K49: ='[3]04 SICCA ABRIL 2016'!O35 -> 600000 | L49: ='[4]05 SICCA MAYO 2016.'!O35 -> 600000 | M49: 600000 | N49: 600000 | O49: 600000 | P49: 600000 | Q49: 600000 | R49: =Q49 -> 600000 | S49: 600000 | T49: 7200000 | U49: 600000 | V49: 7800000
C50: ='[1]01 SICCA ENERO 2016.'!G36 -> 1868912 | D50: ='[1]01 SICCA ENERO 2016.'!H36 -> EULALIA | E50: ='[1]01 SICCA ENERO 2016.'!I36 -> BRITEZ DE ROMAN | F50: 112 | G50: DIETAS | H50: ='[1]01 SICCA ENERO 2016.'!O36 -> 1700000 | I50: ='[2]02 SICCA FEBRERO 2016.'!O36 -> 1700000 | J50: ='[2]02 SICCA FEBRERO 2016.'!P36 -> 1700000 | K50: ='[3]04 SICCA ABRIL 2016'!O36 -> 1700000 | L50: ='[4]05 SICCA MAYO 2016.'!O36 -> 1700000 | M50: 1700000 | N50: 1700000 | O50: 1700000 | P50: 1700000 | Q50: 1700000 | R50: =Q50 -> 1700000 | S50: 1700000 | T50: 20400000 | U50: 1700000 | V50: 22100000
C51: ='[1]01 SICCA ENERO 2016.'!G37 -> 1868912 | D51: ='[1]01 SICCA ENERO 2016.'!H37 -> EULALIA | E51: ='[1]01 SICCA ENERO 2016.'!I37 -> BRITEZ DE ROMAN | F51: 113 | G51: GASTO DE REPRESENTACION | H51: ='[1]01 SICCA ENERO 2016.'!O37 -> 600000 | I51: ='[2]02 SICCA FEBRERO 2016.'!O37 -> 600000 | J51: ='[2]02 SICCA FEBRERO 2016.'!P37 -> 600000 | K51: ='[3]04 SICCA ABRIL 2016'!O37 -> 600000 | L51: ='[4]05 SICCA MAYO 2016.'!O37 -> 600000 | M51: 600000 | N51: 600000 | O51: 600000 | P51: 600000 | Q51: 600000 | R51: =Q51 -> 600000 | S51: 600000 | T51: 7200000 | U51: 600000 | V51: 7800000
C52: ='[1]01 SICCA ENERO 2016.'!G38 -> 1371680 | D52: ='[1]01 SICCA ENERO 2016.'!H38 -> ELEUTERIO | E52: ='[1]01 SICCA ENERO 2016.'!I38 -> SALDIVAR BENITEZ | F52: 112 | G52: DIETAS | H52: ='[1]01 SICCA ENERO 2016.'!O38 -> 1700000 | I52: ='[2]02 SICCA FEBRERO 2016.'!O38 -> 1700000 | J52: ='[2]02 SICCA FEBRERO 2016.'!P38 -> 1700000 | K52: ='[3]04 SICCA ABRIL 2016'!O38 -> 1700000 | L52: ='[4]05 SICCA MAYO 2016.'!O38 -> 1700000 | M52: 1700000 | N52: 1700000 | O52: 1700000 | P52: 1700000 | Q52: 1700000 | R52: =Q52 -> 1700000 | S52: 1700000 | T52: 20400000 | U52: 1700000 | V52: 22100000
C53: ='[1]01 SICCA ENERO 2016.'!G39 -> 1371680 | D53: ='[1]01 SICCA ENERO 2016.'!H39 -> ELEUTERIO | E53: ='[1]01 SICCA ENERO 2016.'!I39 -> SALDIVAR BENITEZ | F53: 113 | G53: GASTO DE REPRESENTACION | H53: ='[1]01 SICCA ENERO 2016.'!O39 -> 600000 | I53: ='[2]02 SICCA FEBRERO 2016.'!O39 -> 600000 | J53: ='[2]02 SICCA FEBRERO 2016.'!P39 -> 600000 | K53: ='[3]04 SICCA ABRIL 2016'!O39 -> 600000 | L53: ='[4]05 SICCA MAYO 2016.'!O39 -> 600000 | M53: 600000 | N53: 600000 | O53: 600000 | P53: 600000 | Q53: 600000 | R53: =Q53 -> 600000 | S53: 600000 | T53: 7200000 | U53: 600000 | V53: 7800000
C54: ='[1]01 SICCA ENERO 2016.'!G40 -> 2405437 | D54: ='[1]01 SICCA ENERO 2016.'!H40 -> FELIPE | E54: ='[1]01 SICCA ENERO 2016.'!I40 -> CUENCA BURGOS | F54: 112 | G54: DIETAS | H54: ='[1]01 SICCA ENERO 2016.'!O40 -> 1700000 | I54: ='[2]02 SICCA FEBRERO 2016.'!O40 -> 1700000 | J54: ='[2]02 SICCA FEBRERO 2016.'!P40 -> 1700000 | K54: ='[3]04 SICCA ABRIL 2016'!O40 -> 1700000 | L54: ='[4]05 SICCA MAYO 2016.'!O40 -> 1700000 | M54: 1700000 | N54: 1700000 | O54: 1700000 | P54: 1700000 | Q54: 1700000 | R54: =Q54 -> 1700000 | S54: 1700000 | T54: 20400000 | U54: 1700000 | V54: 22100000
C55: ='[1]01 SICCA ENERO 2016.'!G41 -> 2405437 | D55: ='[1]01 SICCA ENERO 2016.'!H41 -> FELIPE | E55: ='[1]01 SICCA ENERO 2016.'!I41 -> CUENCA BURGOS | F55: 113 | G55: GASTO DE REPRESENTACION | H55: ='[1]01 SICCA ENERO 2016.'!O41 -> 600000 | I55: ='[2]02 SICCA FEBRERO 2016.'!O41 -> 600000 | J55: ='[2]02 SICCA FEBRERO 2016.'!P41 -> 600000 | K55: ='[3]04 SICCA ABRIL 2016'!O41 -> 600000 | L55: ='[4]05 SICCA MAYO 2016.'!O41 -> 600000 | M55: 600000 | N55: 600000 | O55: 600000 | P55: 600000 | Q55: 600000 | R55: =Q55 -> 600000 | S55: 600000 | T55: 7200000 | U55: 600000 | V55: 7800000
C56: ='[1]01 SICCA ENERO 2016.'!G42 -> 3816590 | D56: ='[1]01 SICCA ENERO 2016.'!H42 -> GREGORIO EVER | E56: ='[1]01 SICCA ENERO 2016.'!I42 -> TROCHE TOLEDO | F56: 144 | G56: JORNALES | H56: ='[1]01 SICCA ENERO 2016.'!O42 -> 1300000 | I56: ='[2]02 SICCA FEBRERO 2016.'!O42 -> 1300000 | J56: ='[2]02 SICCA FEBRERO 2016.'!P42 -> 1300000 | K56: ='[3]04 SICCA ABRIL 2016'!O42 -> 1300000 | L56: ='[4]05 SICCA MAYO 2016.'!O42 -> 1300000 | M56: 1300000 | N56: 1300000 | O56: 1300000 | P56: 1300000 | Q56: 1300000 | R56: =Q56 -> 1300000 | S56: 1300000 | T56: 15600000 | U56: 1300000 | V56: 16900000
C57: ='[1]01 SICCA ENERO 2016.'!G43 -> 3620894 | D57: ='[1]01 SICCA ENERO 2016.'!H43 -> LUIS | E57: ='[1]01 SICCA ENERO 2016.'!I43 -> VILLAR DIAZ | F57: 144 | G57: JORNALES | H57: ='[1]01 SICCA ENERO 2016.'!O43 -> 1800000 | I57: ='[2]02 SICCA FEBRERO 2016.'!O43 -> 1800000 | J57: ='[2]02 SICCA FEBRERO 2016.'!P43 -> 1800000 | K57: ='[3]04 SICCA ABRIL 2016'!O43 -> 1800000 | L57: ='[3]04 SICCA ABRIL 2016'!P43 -> 1800000 | M57: 1800000 | N57: 1800000 | O57: 1800000 | P57: 1800000 | Q57: 1800000 | R57: =Q57 -> 1800000 | S57: 1800000 | T57: 21600000 | U57: 1800000 | V57: 23400000
C58: ='[1]01 SICCA ENERO 2016.'!G44 -> 2495393 | D58: ='[1]01 SICCA ENERO 2016.'!H44 -> MIGUEL ANGEL | E58: ='[1]01 SICCA ENERO 2016.'!I44 -> GIMENEZ | F58: 144 | G58: JORNALES | H58: ='[1]01 SICCA ENERO 2016.'!O44 -> 800000 | I58: ='[2]02 SICCA FEBRERO 2016.'!O44 -> 800000 | J58: ='[2]02 SICCA FEBRERO 2016.'!P44 -> 800000 | K58: 800000 | L58: 800000 | M58: 800000 | N58: 800000 | O58: 800000 | P58: 800000 | Q58: 800000 | R58: =Q58 -> 800000 | S58: 800000 | T58: 9600000 | U58: 800000 | V58: 10400000
C59: ='[6]12 SICCA Diciembre.'!G46 -> 3366110 | D59: ='[6]12 SICCA Diciembre.'!H46 -> ISMAEL | E59: ='[6]12 SICCA Diciembre.'!I46 -> CANDIA GAMARRA | F59: 144 | G59: JORNALES | H59: 0 | I59: 0 | J59: 0 | K59: 800000 | L59: 800000 | M59: 800000 | N59: 800000 | O59: 800000 | P59: 800000 | Q59: 800000 | R59: =Q59 -> 800000 | S59: 800000 | T59: =H59+I59+J59+K59+L59+M59+N59+O59+P59+Q59+R59+S59 -> 7200000 | U59: 600000 | V59: =T59+U59 -> 7800000
C60: ='[1]01 SICCA ENERO 2016.'!G45 -> 3980347 | D60: ='[1]01 SICCA ENERO 2016.'!H45 -> VICTOR OSMAR | E60: ='[1]01 SICCA ENERO 2016.'!I45 -> FIGUEREDO MARTINEZ | F60: 144 | G60: JORNALES | H60: ='[1]01 SICCA ENERO 2016.'!O45 -> 800000 | I60: ='[2]02 SICCA FEBRERO 2016.'!O45 -> 800000 | J60: ='[2]02 SICCA FEBRERO 2016.'!P45 -> 800000 | K60: 0 | L60: 0 | M60: 0 | N60: 0 | O60: 0 | P60: 0 | Q60: 0 | R60: =Q60 -> 0 | S60: 0 | T60: 2400000 | U60: 200000 | V60: 2600000
C61: ='[1]01 SICCA ENERO 2016.'!G46 -> 3591115 | D61: ='[1]01 SICCA ENERO 2016.'!H46 -> GENARO | E61: ='[1]01 SICCA ENERO 2016.'!I46 -> OCAMPOS ESPINOLA | F61: 144 | G61: JORNALES | H61: ='[1]01 SICCA ENERO 2016.'!O46 -> 800000 | I61: ='[2]02 SICCA FEBRERO 2016.'!O46 -> 800000 | J61: ='[2]02 SICCA FEBRERO 2016.'!P46 -> 800000 | K61: 1200000 | L61: 1200000 | M61: 1200000 | N61: 1200000 | O61: 1200000 | P61: 1200000 | Q61: 1200000 | R61: =Q61 -> 1200000 | S61: 1200000 | T61: 13200000 | U61: 800000 | V61: 14000000
C62: ='[1]01 SICCA ENERO 2016.'!G47 -> 5196189 | D62: ='[1]01 SICCA ENERO 2016.'!H47 -> RIGOBERTO | E62: ='[1]01 SICCA ENERO 2016.'!I47 -> GONZALEZ | F62: 144 | G62: JORNALES | H62: ='[1]01 SICCA ENERO 2016.'!O47 -> 800000 | I62: ='[2]02 SICCA FEBRERO 2016.'!O47 -> 800000 | J62: ='[2]02 SICCA FEBRERO 2016.'!P47 -> 800000 | K62: 800000 | L62: 800000 | M62: 800000 | N62: 800000 | O62: 800000 | P62: 800000 | Q62: 800000 | R62: =Q62 -> 800000 | S62: 800000 | T62: 9600000 | U62: 800000 | V62: 10400000
C63: ='[1]01 SICCA ENERO 2016.'!G48 -> 4592435 | D63: ='[1]01 SICCA ENERO 2016.'!H48 -> ROBRIGO DANIEL | E63: ='[1]01 SICCA ENERO 2016.'!I48 -> MELGAREJO SORIA | F63: 144 | G63: JORNALES | H63: ='[1]01 SICCA ENERO 2016.'!O48 -> 1100000 | I63: ='[2]02 SICCA FEBRERO 2016.'!O48 -> 1100000 | J63: ='[2]02 SICCA FEBRERO 2016.'!P48 -> 1100000 | K63: 1100000 | L63: 1100000 | M63: 1100000 | N63: 1100000 | O63: 1100000 | P63: 1100000 | Q63: 1100000 | R63: =Q63 -> 1100000 | S63: 1100000 | T63: 13200000 | U63: 1100000 | V63: 14300000
C64: ='[1]01 SICCA ENERO 2016.'!G49 -> 4383142 | D64: ='[1]01 SICCA ENERO 2016.'!H49 -> PEDRO ANIBAL | E64: ='[1]01 SICCA ENERO 2016.'!I49 -> RECALDE DUARTE | F64: 144 | G64: JORNALES | H64: ='[1]01 SICCA ENERO 2016.'!O49 -> 800000 | I64: ='[2]02 SICCA FEBRERO 2016.'!O49 -> 800000 | J64: ='[2]02 SICCA FEBRERO 2016.'!P49 -> 800000 | K64: 0 | L64: 0 | M64: 0 | N64: 0 | O64: 0 | P64: 0 | Q64: 0 | R64: =Q64 -> 0 | S64: 0 | T64: 2400000 | U64: 200000 | V64: 2600000
C65: ='[1]01 SICCA ENERO 2016.'!G50 -> 5904507 | D65: ='[1]01 SICCA ENERO 2016.'!H50 -> JULIO CESAR | E65: ='[1]01 SICCA ENERO 2016.'!I50 -> ACOSTA BENITEZ | F65: 144 | G65: JORNALES | H65: ='[1]01 SICCA ENERO 2016.'!O50 -> 800000 | I65: ='[2]02 SICCA FEBRERO 2016.'!O50 -> 800000 | J65: ='[2]02 SICCA FEBRERO 2016.'!P50 -> 800000 | K65: 800000 | L65: 800000 | M65: 800000 | N65: 800000 | O65: 800000 | P65: 800000 | Q65: 800000 | R65: =Q65 -> 800000 | S65: 800000 | T65: 9600000 | U65: 800000 | V65: 10400000
C66: ='[7]05 SICCA JUNIO 2016. 1'!G45 -> 2495393 | D66: ='[7]05 SICCA JUNIO 2016. 1'!H45 -> MIGUEL ANGEL | E66: ='[7]05 SICCA JUNIO 2016. 1'!I45 -> GIMENEZ | F66: 144 | G66: JORNALES | H66: 0 | I66: 0 | J66: 0 | K66: 800000 | L66: 800000 | M66: 800000 | N66: 800000 | O66: 800000 | P66: 800000 | Q66: 800000 | R66: =Q66 -> 800000 | S66: 800000 | T66: =H66+I66+J66+K66+L66+M66+N66+O66+P66+Q66+R66+S66 -> 7200000 | U66: 600000 | V66: =T66+U66 -> 7800000
C67: ='[1]01 SICCA ENERO 2016.'!G51 -> 4429128 | D67: ='[1]01 SICCA ENERO 2016.'!H51 -> RAFAEL NICANOR | E67: ='[1]01 SICCA ENERO 2016.'!I51 -> ACOSTA OCAMPOS | F67: 144 | G67: JORNALES | H67: ='[1]01 SICCA ENERO 2016.'!O51 -> 800000 | I67: ='[2]02 SICCA FEBRERO 2016.'!O51 -> 800000 | J67: ='[2]02 SICCA FEBRERO 2016.'!P51 -> 800000 | K67: 800000 | L67: 800000 | M67: 800000 | N67: 800000 | O67: 800000 | P67: 800000 | Q67: 800000 | R67: =Q67 -> 800000 | S67: 800000 | T67: 9600000 | U67: 8000000 | V67: 17600000
C68: ='[1]01 SICCA ENERO 2016.'!G52 -> 958889 | D68: ='[1]01 SICCA ENERO 2016.'!H52 -> CARLOS ISIDRO | E68: ='[1]01 SICCA ENERO 2016.'!I52 -> BAEZ RODRIGUEZ | F68: 144 | G68: JORNALES | H68: ='[1]01 SICCA ENERO 2016.'!O52 -> 1800000 | I68: ='[2]02 SICCA FEBRERO 2016.'!O52 -> 800000 | J68: ='[2]02 SICCA FEBRERO 2016.'!P52 -> 800000 | K68: 0 | L68: 0 | M68: 0 | N68: 0 | O68: 0 | P68: 0 | Q68: 0 | R68: =Q68 -> 0 | S68: 0 | T68: 3400000 | U68: 283333 | V68: 3683333
C69: ='[1]01 SICCA ENERO 2016.'!G53 -> 1373945 | D69: ='[1]01 SICCA ENERO 2016.'!H53 -> DEMETRIO | E69: ='[1]01 SICCA ENERO 2016.'!I53 -> RAMIREZ COLMAN | F69: 144 | G69: JORNALES | H69: ='[1]01 SICCA ENERO 2016.'!O53 -> 1800000 | I69: ='[2]02 SICCA FEBRERO 2016.'!O53 -> 1800000 | J69: ='[2]02 SICCA FEBRERO 2016.'!P53 -> 1800000 | K69: 0 | L69: 0 | M69: 0 | N69: 0 | O69: 0 | P69: 0 | Q69: 0 | R69: =Q69 -> 0 | S69: 0 | T69: 5400000 | U69: 450000 | V69: 5850000
C70: ='[1]01 SICCA ENERO 2016.'!G54 -> 3183304 | D70: ='[1]01 SICCA ENERO 2016.'!H54 -> CARLOS ANTONIO | E70: ='[1]01 SICCA ENERO 2016.'!I54 -> GRAY AREVALOS | F70: 144 | G70: JORNALES | H70: ='[1]01 SICCA ENERO 2016.'!O54 -> 1800000 | I70: ='[2]02 SICCA FEBRERO 2016.'!O54 -> 1800000 | J70: ='[2]02 SICCA FEBRERO 2016.'!P54 -> 1800000 | K70: 0 | L70: 0 | M70: 0 | N70: 0 | O70: 0 | P70: 0 | Q70: 0 | R70: =Q70 -> 0 | S70: 0 | T70: 5400000 | U70: 450000 | V70: 5850000
C71: ='[1]01 SICCA ENERO 2016.'!G55 -> 3210803 | D71: ='[1]01 SICCA ENERO 2016.'!H55 -> MARCIANO | E71: ='[1]01 SICCA ENERO 2016.'!I55 -> ORZUSA VEGA | F71: 144 | G71: JORNALES | H71: ='[1]01 SICCA ENERO 2016.'!O55 -> 800000 | I71: ='[2]02 SICCA FEBRERO 2016.'!O55 -> 800000 | J71: ='[2]02 SICCA FEBRERO 2016.'!P55 -> 800000 | K71: 800000 | L71: 800000 | M71: 800000 | N71: 800000 | O71: 800000 | P71: 800000 | Q71: 800000 | R71: =Q71 -> 800000 | S71: 800000 | T71: 9600000 | U71: 800000 | V71: 10400000
C72: ='[1]01 SICCA ENERO 2016.'!G56 -> 2532092 | D72: ='[1]01 SICCA ENERO 2016.'!H56 -> OSCAR PATROCINIO | E72: ='[1]01 SICCA ENERO 2016.'!I56 -> BARRIOS GONZALEZ | F72: 144 | G72: JORNALES | H72: ='[1]01 SICCA ENERO 2016.'!O56 -> 1800000 | I72: ='[2]02 SICCA FEBRERO 2016.'!O56 -> 1800000 | J72: ='[2]02 SICCA FEBRERO 2016.'!P56 -> 1800000 | K72: 1800000 | L72: 1800000 | M72: 1800000 | N72: 1800000 | O72: 1800000 | P72: 1800000 | Q72: 1800000 | R72: =Q72 -> 1800000 | S72: 1800000 | T72: 21600000 | U72: 1800000 | V72: 23400000
C73: ='[1]01 SICCA ENERO 2016.'!G57 -> 6163219 | D73: ='[1]01 SICCA ENERO 2016.'!H57 -> ARNALDO ANDRES | E73: ='[1]01 SICCA ENERO 2016.'!I57 -> RAMIREZ PRUDHOME | F73: 144 | G73: JORNALES | H73: ='[1]01 SICCA ENERO 2016.'!O57 -> 1500000 | I73: ='[2]02 SICCA FEBRERO 2016.'!O57 -> 1500000 | J73: ='[2]02 SICCA FEBRERO 2016.'!P57 -> 1500000 | K73: 1500000 | L73: 1500000 | M73: 1500000 | N73: 1500000 | O73: 1500000 | P73: 1500000 | Q73: 1500000 | R73: =Q73 -> 1500000 | S73: 1500000 | T73: 18000000 | U73: 1500000 | V73: 19500000
C74: ='[1]01 SICCA ENERO 2016.'!G58 -> 1854902 | D74: ='[1]01 SICCA ENERO 2016.'!H58 -> AVELINO | E74: ='[1]01 SICCA ENERO 2016.'!I58 -> SERVIN | F74: 144 | G74: JORNALES | H74: ='[1]01 SICCA ENERO 2016.'!O58 -> 450000 | I74: ='[2]02 SICCA FEBRERO 2016.'!O58 -> 450000 | J74: ='[2]02 SICCA FEBRERO 2016.'!P58 -> 450000 | K74: 450000 | L74: 450000 | M74: 450000 | N74: 450000 | O74: 450000 | P74: 450000 | Q74: 450000 | R74: =Q74 -> 450000 | S74: 450000 | T74: 5400000 | U74: 450000 | V74: 5850000
C75: ='[1]01 SICCA ENERO 2016.'!G59 -> 2495426 | D75: ='[1]01 SICCA ENERO 2016.'!H59 -> QUINTIN | E75: ='[1]01 SICCA ENERO 2016.'!I59 -> BAEZ PINTOS | F75: 144 | G75: JORNALES | H75: ='[1]01 SICCA ENERO 2016.'!O59 -> 200000 | I75: ='[2]02 SICCA FEBRERO 2016.'!O59 -> 200000 | J75: ='[2]02 SICCA FEBRERO 2016.'!P59 -> 200000 | K75: 200000 | L75: 200000 | M75: 200000 | N75: 200000 | O75: 200000 | P75: 200000 | Q75: 200000 | R75: =Q75 -> 200000 | S75: 200000 | T75: 2400000 | U75: 200000 | V75: 2600000
C76: ='[1]01 SICCA ENERO 2016.'!G60 -> 1494592 | D76: ='[1]01 SICCA ENERO 2016.'!H60 -> BENJAMIN | E76: ='[1]01 SICCA ENERO 2016.'!I60 -> VELAZQUEZ VILLAR | F76: 144 | G76: JORNALES | H76: ='[1]01 SICCA ENERO 2016.'!O60 -> 200000 | I76: ='[2]02 SICCA FEBRERO 2016.'!O60 -> 200000 | J76: ='[2]02 SICCA FEBRERO 2016.'!P60 -> 200000 | K76: 200000 | L76: 200000 | M76: 200000 | N76: 200000 | O76: 200000 | P76: 200000 | Q76: 200000 | R76: =Q76 -> 200000 | S76: 200000 | T76: 2400000 | U76: 200000 | V76: 2600000
C77: ='[1]01 SICCA ENERO 2016.'!G61 -> 1622456 | D77: ='[1]01 SICCA ENERO 2016.'!H61 -> JUAN RAMON | E77: ='[1]01 SICCA ENERO 2016.'!I61 -> FLORES ALFONZO | F77: 144 | G77: JORNALES | H77: ='[1]01 SICCA ENERO 2016.'!O61 -> 1800000 | I77: ='[2]02 SICCA FEBRERO 2016.'!O61 -> 1800000 | J77: ='[2]02 SICCA FEBRERO 2016.'!P61 -> 1800000 | K77: 1800000 | L77: 1800000 | M77: 1800000 | N77: 1800000 | O77: 1800000 | P77: 1800000 | Q77: 1800000 | R77: =Q77 -> 1800000 | S77: 1800000 | T77: 21600000 | U77: 1800000 | V77: 23400000
C78: ='[5]05 SICCA JUNIO 2016. 1'!G60 -> 3519570 | D78: ='[5]05 SICCA JUNIO 2016. 1'!H60 -> WON SUK | E78: ='[5]05 SICCA JUNIO 2016. 1'!I60 -> CHOI | F78: 145 | G78: ='[5]05 SICCA JUNIO 2016. 1'!Q60 -> HONORARIO PROFESIONALEES | H78: 0 | I78: 0 | J78: 0 | K78: 0 | L78: 0 | M78: ='[5]05 SICCA JUNIO 2016. 1'!O60 -> 4000000 | N78: 4000000 | O78: 4000000 | P78: 4000000 | Q78: 4000000 | R78: =Q78 -> 4000000 | S78: 4000000 | T78: =SUM(M78:S78) -> 28000000 | U78: 2333333 | V78: 30333333
C79: ='[5]05 SICCA JUNIO 2016. 1'!G61 -> 2215706 | D79: ='[5]05 SICCA JUNIO 2016. 1'!H61 -> CESAR OSVALDO | E79: ='[5]05 SICCA JUNIO 2016. 1'!I61 -> CANTERO BOGADO | F79: 145 | G79: ='[5]05 SICCA JUNIO 2016. 1'!Q61 -> HONORARIO PROFESIONALEES | H79: 0 | I79: 0 | J79: 0 | K79: 0 | L79: 0 | M79: ='[5]05 SICCA JUNIO 2016. 1'!O61 -> 5500000 | N79: =M79 -> 5500000 | O79: 5500000 | P79: =O79 -> 5500000 | Q79: 5500000 | R79: =Q79 -> 5500000 | S79: 5500000 | T79: =SUM(M79:S79) -> 38500000 | U79: 3208333 | V79: 41708333
H81: =SUM(H15:H80) -> 80050000 | I81: 79050000 | J81: 79050000 | K81: 73050000 | L81: 73050000 | M81: 86250000 | N81: 86250000 | O81: 88250000 | P81: 88250000 | Q81: 88250000 | R81: 88250000 | S81: 88250000 | T81: =SUM(H81:S81) -> 998000000 | U81: =SUM(U15:U80) -> 92948165 | V81: =SUM(T81:U81) -> 1090948165
